[Event "Titled Tuesday Blitz October 11 Late 2022"]
[White "Shapiro, Daniel"]
[Black "Toncheva, Nadya"]
[WhiteFideId "2001780"]
[BlackFideId "2924056"]
[WhiteElo "2219"]
[BlackElo "2101"]
[Result "0-1"]
[Round "02"]
[TimeControl "180+1"]
[Date "2022.10.12"]
[WhiteClock "0:00:05"]
[BlackClock "0:01:16"]

1. d4 {[%clk 0:03:00]}  d5 {[%clk 0:02:57]} 2. c4 {[%clk 0:03:00]}  dxc4 {[%clk 0:02:58]} 3. e4 {[%clk 0:03:00]}  e5 {[%clk 0:02:56]} 4. Nf3 {[%clk 0:02:57]}  Bb4+ {[%clk 0:02:54]} 5. Nbd2 {[%clk 0:02:52]}  c3 {[%clk 0:02:54]} 6. bxc3 {[%clk 0:02:37]}  Bxc3 {[%clk 0:02:54]} 7. Ba3 {[%clk 0:02:34]}  Bxa1 {[%clk 0:02:52]} 8. Qxa1 {[%clk 0:02:35]}  exd4 {[%clk 0:02:45]} 9. Bc4 {[%clk 0:02:23]}  Nf6 {[%clk 0:02:35]} 10. e5 {[%clk 0:02:16]}  Nd5 {[%clk 0:02:31]} 11. Qxd4 {[%clk 0:02:14]}  Be6 {[%clk 0:02:27]} 12. Qe4 {[%clk 0:01:48]}  Nc6 {[%clk 0:02:23]} 13. h4 {[%clk 0:01:43]}  Qd7 {[%clk 0:02:21]} 14. O-O {[%clk 0:01:32]}  O-O-O {[%clk 0:02:10]} 15. Rc1 {[%clk 0:01:15]}  Nb6 {[%clk 0:02:06]} 16. Bb5 {[%clk 0:01:02]}  Bd5 {[%clk 0:01:59]} 17. Qe3 {[%clk 0:00:58]}  Rhe8 {[%clk 0:01:57]} 18. Nb3 {[%clk 0:00:43]}  Bxb3 {[%clk 0:01:49]} 19. Qxb3 {[%clk 0:00:36]}  Qd5 {[%clk 0:01:47]} 20. Qxd5 {[%clk 0:00:23]}  Rxd5 {[%clk 0:01:44]} 21. Bxc6 {[%clk 0:00:20]}  bxc6 {[%clk 0:01:44]} 22. Rxc6 {[%clk 0:00:20]}  Kb7 {[%clk 0:01:44]} 23. Rc3 {[%clk 0:00:16]}  Red8 {[%clk 0:01:42]} 24. Kh2 {[%clk 0:00:13]}  Rd3 {[%clk 0:01:41]} 25. Bb4 {[%clk 0:00:11]}  Rxc3 {[%clk 0:01:40]} 26. Bxc3 {[%clk 0:00:11]}  Nd5 {[%clk 0:01:40]} 27. Bd4 {[%clk 0:00:11]}  Nb4 {[%clk 0:01:38]} 28. a3 {[%clk 0:00:09]}  Nc2 {[%clk 0:01:38]} 29. Bb2 {[%clk 0:00:09]}  Rd3 {[%clk 0:01:37]} 30. Kg3 {[%clk 0:00:06]}  Nxa3 {[%clk 0:01:36]} 31. Kf4 {[%clk 0:00:05]}  Nc4 {[%clk 0:01:36]} 32. Bc1 {[%clk 0:00:05]}  Rc3 {[%clk 0:01:33]} 33. Be3 {[%clk 0:00:03]}  Nxe3 {[%clk 0:01:33]} 34. fxe3 {[%clk 0:00:04]}  a5 {[%clk 0:01:34]} 35. Ng5 {[%clk 0:00:04]}  a4 {[%clk 0:01:34]} 36. Nxf7 {[%clk 0:00:04]}  a3 {[%clk 0:01:21]} 37. e6 {[%clk 0:00:05]}  Kc8 {[%clk 0:01:19]} 38. Ne5 {[%clk 0:00:05]}  Kd8 {[%clk 0:01:16]} 0-1


[Site "https://www.chess.com"]

[Event "Titled Tuesday Blitz October 11 Late 2022"]
[White "Sohal, Tanraj"]
[Black "Jensen, Matthew R"]
[WhiteFideId "2608499"]
[BlackFideId "2018110"]
[WhiteElo "2200"]
[BlackElo "2287"]
[Result "1/2-1/2"]
[Round "02"]
[TimeControl "180+1"]
[Date "2022.10.12"]
[WhiteClock "0:00:03"]
[BlackClock "0:00:28"]

1. e4 {[%clk 0:03:00]}  c6 {[%clk 0:02:53]} 2. d4 {[%clk 0:02:59]}  d5 {[%clk 0:02:54]} 3. e5 {[%clk 0:03:00]}  c5 {[%clk 0:02:54]} 4. dxc5 {[%clk 0:02:59]}  e6 {[%clk 0:02:55]} 5. Be3 {[%clk 0:02:58]}  Nd7 {[%clk 0:02:54]} 6. c4 {[%clk 0:02:56]}  Bxc5 {[%clk 0:02:48]} 7. Bxc5 {[%clk 0:02:52]}  Nxc5 {[%clk 0:02:47]} 8. cxd5 {[%clk 0:02:52]}  Qxd5 {[%clk 0:02:46]} 9. Qxd5 {[%clk 0:02:50]}  exd5 {[%clk 0:02:47]} 10. Nf3 {[%clk 0:02:50]}  Ne7 {[%clk 0:02:45]} 11. Nc3 {[%clk 0:02:48]}  Be6 {[%clk 0:02:41]} 12. Bb5+ {[%clk 0:02:43]}  Kf8 {[%clk 0:02:29]} 13. O-O-O {[%clk 0:02:42]}  g6 {[%clk 0:02:15]} 14. Nd4 {[%clk 0:02:35]}  Kg7 {[%clk 0:02:13]} 15. Rhe1 {[%clk 0:02:29]}  a6 {[%clk 0:02:08]} 16. Be2 {[%clk 0:02:26]}  Rac8 {[%clk 0:01:52]} 17. Kb1 {[%clk 0:02:23]}  Rhd8 {[%clk 0:01:52]} 18. f4 {[%clk 0:02:23]}  b5 {[%clk 0:01:44]} 19. a3 {[%clk 0:02:22]}  Nf5 {[%clk 0:01:31]} 20. Bf3 {[%clk 0:02:15]}  Nxd4 {[%clk 0:01:27]} 21. Rxd4 {[%clk 0:02:15]}  Bf5+ {[%clk 0:01:27]} 22. Ka2 {[%clk 0:02:15]}  Ne4 {[%clk 0:00:54]} 23. Nxd5 {[%clk 0:01:59]}  Nc5 {[%clk 0:00:40]} 24. g4 {[%clk 0:01:45]}  Be6 {[%clk 0:00:41]} 25. b3 {[%clk 0:01:34]}  Nd7 {[%clk 0:00:39]} 26. Kb2 {[%clk 0:01:31]}  Nc5 {[%clk 0:00:34]} 27. Red1 {[%clk 0:01:27]}  a5 {[%clk 0:00:32]} 28. Nb6 {[%clk 0:01:07]}  Rxd4 {[%clk 0:00:32]} 29. Rxd4 {[%clk 0:01:07]}  Rc7 {[%clk 0:00:30]} 30. Nd5 {[%clk 0:01:05]}  Rd7 {[%clk 0:00:29]} 31. b4 {[%clk 0:01:01]}  Na4+ {[%clk 0:00:28]} 32. Kc2 {[%clk 0:00:34]}  Nb6 {[%clk 0:00:29]} 33. Nxb6 {[%clk 0:00:26]}  Rxd4 {[%clk 0:00:29]} 34. bxa5 {[%clk 0:00:26]}  b4 {[%clk 0:00:29]} 35. axb4 {[%clk 0:00:20]}  Rxb4 {[%clk 0:00:28]} 36. Bb7 {[%clk 0:00:13]}  Rb5 {[%clk 0:00:28]} 37. a6 {[%clk 0:00:10]}  Ra5 {[%clk 0:00:29]} 38. g5 {[%clk 0:00:08]}  Bf5+ {[%clk 0:00:28]} 39. Kc3 {[%clk 0:00:08]}  Bh3 {[%clk 0:00:27]} 40. Kb4 {[%clk 0:00:08]}  Ra1 {[%clk 0:00:28]} 41. Kc5 {[%clk 0:00:08]}  Bf1 {[%clk 0:00:28]} 42. Nc4 {[%clk 0:00:06]}  Bxc4 {[%clk 0:00:26]} 43. Kxc4 {[%clk 0:00:06]}  h6 {[%clk 0:00:26]} 44. h4 {[%clk 0:00:05]}  hxg5 {[%clk 0:00:26]} 45. hxg5 {[%clk 0:00:06]}  Ra4+ {[%clk 0:00:26]} 46. Kc5 {[%clk 0:00:06]}  Kf8 {[%clk 0:00:25]} 47. Kb6 {[%clk 0:00:06]}  Ke7 {[%clk 0:00:25]} 48. a7 {[%clk 0:00:06]}  Ke6 {[%clk 0:00:26]} 49. a8=Q {[%clk 0:00:07]}  Rxa8 {[%clk 0:00:26]} 50. Bxa8 {[%clk 0:00:07]}  Kf5 {[%clk 0:00:27]} 51. Bd5 {[%clk 0:00:05]}  Kxf4 {[%clk 0:00:27]} 52. Bxf7 {[%clk 0:00:05]}  Kxe5 {[%clk 0:00:28]} 53. Bxg6 {[%clk 0:00:03]}  Kf4 {[%clk 0:00:28]} 1/2-1/2


[Site "https://www.chess.com"]

[Event "Titled Tuesday Blitz October 11 Late 2022"]
[White "Souleidis, Georgios"]
[Black "Cabarkapa, Novak"]
[WhiteFideId "4206827"]
[BlackFideId "943746"]
[WhiteElo "2401"]
[BlackElo "2390"]
[Result "0-1"]
[Round "02"]
[TimeControl "180+1"]
[Date "2022.10.12"]
[WhiteClock "0:00:04"]
[BlackClock "0:00:09"]

1. e4 {[%clk 0:02:57]}  d5 {[%clk 0:02:59]} 2. exd5 {[%clk 0:02:57]}  Qxd5 {[%clk 0:03:00]} 3. Nc3 {[%clk 0:02:56]}  Qd6 {[%clk 0:03:00]} 4. d4 {[%clk 0:02:56]}  Nf6 {[%clk 0:03:01]} 5. Nf3 {[%clk 0:02:57]}  g6 {[%clk 0:03:01]} 6. h3 {[%clk 0:02:53]}  Bg7 {[%clk 0:03:00]} 7. Bd3 {[%clk 0:02:54]}  O-O {[%clk 0:02:59]} 8. O-O {[%clk 0:02:54]}  a6 {[%clk 0:03:00]} 9. Re1 {[%clk 0:02:51]}  Nc6 {[%clk 0:02:55]} 10. Qe2 {[%clk 0:02:36]}  e6 {[%clk 0:02:11]} 11. Be3 {[%clk 0:02:36]}  Nb4 {[%clk 0:02:06]} 12. Bc4 {[%clk 0:02:29]}  b5 {[%clk 0:02:06]} 13. Bb3 {[%clk 0:02:29]}  Bb7 {[%clk 0:02:07]} 14. Rad1 {[%clk 0:02:20]}  Nbd5 {[%clk 0:01:54]} 15. Nxd5 {[%clk 0:02:15]}  Nxd5 {[%clk 0:01:50]} 16. Bg5 {[%clk 0:02:01]}  c5 {[%clk 0:01:30]} 17. dxc5 {[%clk 0:01:55]}  Qxc5 {[%clk 0:01:31]} 18. c3 {[%clk 0:01:50]}  h6 {[%clk 0:01:18]} 19. Bc1 {[%clk 0:01:47]}  Rad8 {[%clk 0:01:14]} 20. Ne5 {[%clk 0:01:44]}  Nf6 {[%clk 0:01:03]} 21. Rxd8 {[%clk 0:01:33]}  Rxd8 {[%clk 0:01:04]} 22. a3 {[%clk 0:00:37]}  Bd5 {[%clk 0:01:01]} 23. Bc2 {[%clk 0:00:30]}  Re8 {[%clk 0:00:45]} 24. Rd1 {[%clk 0:00:29]}  Bb7 {[%clk 0:00:34]} 25. Qe3 {[%clk 0:00:24]}  Qxe3 {[%clk 0:00:32]} 26. Bxe3 {[%clk 0:00:25]}  Nd5 {[%clk 0:00:32]} 27. Bd4 {[%clk 0:00:24]}  Rd8 {[%clk 0:00:31]} 28. Re1 {[%clk 0:00:23]}  Nf4 {[%clk 0:00:29]} 29. f3 {[%clk 0:00:23]}  g5 {[%clk 0:00:26]} 30. Kh2 {[%clk 0:00:19]}  Bf8 {[%clk 0:00:25]} 31. Ng4 {[%clk 0:00:16]}  Bg7 {[%clk 0:00:19]} 32. Ne5 {[%clk 0:00:09]}  Nd5 {[%clk 0:00:17]} 33. Be4 {[%clk 0:00:06]}  Ba8 {[%clk 0:00:16]} 34. Bc2 {[%clk 0:00:06]}  Nf4 {[%clk 0:00:16]} 35. Bb3 {[%clk 0:00:04]}  Bd5 {[%clk 0:00:16]} 36. Bxd5 {[%clk 0:00:04]}  Nxd5 {[%clk 0:00:16]} 37. g3 {[%clk 0:00:03]}  Rc8 {[%clk 0:00:17]} 38. Re2 {[%clk 0:00:03]}  Kf8 {[%clk 0:00:17]} 39. Kg2 {[%clk 0:00:03]}  Ke8 {[%clk 0:00:17]} 40. Kf2 {[%clk 0:00:04]}  a5 {[%clk 0:00:18]} 41. Rd2 {[%clk 0:00:04]}  Bf6 {[%clk 0:00:17]} 42. Ng4 {[%clk 0:00:03]}  Bxd4+ {[%clk 0:00:16]} 43. Rxd4 {[%clk 0:00:04]}  h5 {[%clk 0:00:16]} 44. Ne5 {[%clk 0:00:05]}  Ke7 {[%clk 0:00:16]} 45. Nd3 {[%clk 0:00:05]}  f6 {[%clk 0:00:15]} 46. h4 {[%clk 0:00:05]}  gxh4 {[%clk 0:00:12]} 47. Rxh4 {[%clk 0:00:06]}  Rd8 {[%clk 0:00:10]} 48. Ke2 {[%clk 0:00:04]}  Rg8 {[%clk 0:00:09]} 49. Kf2 {[%clk 0:00:04]}  Rg5 {[%clk 0:00:09]} 50. Nf4 {[%clk 0:00:03]}  Nxf4 {[%clk 0:00:09]} 51. Rxf4 {[%clk 0:00:04]}  Rd5 {[%clk 0:00:10]} 52. Ke2 {[%clk 0:00:04]}  a4 {[%clk 0:00:08]} 53. Rh4 {[%clk 0:00:04]}  Kd6 {[%clk 0:00:08]} 54. Re4 {[%clk 0:00:04]}  Re5 {[%clk 0:00:07]} 55. Ke3 {[%clk 0:00:04]}  Rxe4+ {[%clk 0:00:06]} 56. Kxe4 {[%clk 0:00:04]}  Kc5 {[%clk 0:00:06]} 57. Kd3 {[%clk 0:00:03]}  Kd5 {[%clk 0:00:07]} 58. Ke3 {[%clk 0:00:02]}  Ke5 {[%clk 0:00:07]} 59. f4+ {[%clk 0:00:02]}  Kf5 {[%clk 0:00:07]} 60. Kf3 {[%clk 0:00:03]}  e5 {[%clk 0:00:08]} 61. fxe5 {[%clk 0:00:03]}  fxe5 {[%clk 0:00:08]} 62. Ke3 {[%clk 0:00:04]}  e4 {[%clk 0:00:09]} 63. Kf2 {[%clk 0:00:04]}  Kg4 {[%clk 0:00:09]} 64. Kg2 {[%clk 0:00:04]}  e3 {[%clk 0:00:09]} 0-1


[Site "https://www.chess.com"]

[Event "Titled Tuesday Blitz October 11 Late 2022"]
[White "Storey, Charles H"]
[Black "Boyer, Mahel"]
[WhiteFideId "406686"]
[BlackFideId "45102422"]
[WhiteElo "2252"]
[BlackElo "2454"]
[Result "0-1"]
[Round "02"]
[TimeControl "180+1"]
[Date "2022.10.12"]
[WhiteClock "0:01:03"]
[BlackClock "0:01:09"]

1. e4 {[%clk 0:03:00]}  c5 {[%clk 0:02:49]} 2. Nf3 {[%clk 0:03:00]}  d6 {[%clk 0:02:50]} 3. d4 {[%clk 0:03:00]}  cxd4 {[%clk 0:02:51]} 4. Nxd4 {[%clk 0:03:00]}  Nf6 {[%clk 0:02:52]} 5. f3 {[%clk 0:03:01]}  d5 {[%clk 0:02:11]} 6. e5 {[%clk 0:02:53]}  Nfd7 {[%clk 0:02:12]} 7. e6 {[%clk 0:02:49]}  fxe6 {[%clk 0:02:11]} 8. Nxe6 {[%clk 0:02:50]}  Qb6 {[%clk 0:02:12]} 9. Nxf8 {[%clk 0:02:41]}  Rxf8 {[%clk 0:02:12]} 10. Qxd5 {[%clk 0:02:40]}  Nc6 {[%clk 0:02:11]} 11. Qh5+ {[%clk 0:02:40]}  g6 {[%clk 0:02:11]} 12. Qxh7 {[%clk 0:02:40]}  Nd4 {[%clk 0:02:03]} 13. Bd3 {[%clk 0:02:39]}  Ne5 {[%clk 0:01:58]} 14. Na3 {[%clk 0:02:11]}  Nxd3+ {[%clk 0:01:54]} 15. cxd3 {[%clk 0:02:11]}  Qe6+ {[%clk 0:01:54]} 16. Kd2 {[%clk 0:01:53]}  Qe2+ {[%clk 0:01:55]} 17. Kc3 {[%clk 0:01:53]}  Bf5 {[%clk 0:01:55]} 18. Kxd4 {[%clk 0:01:34]}  O-O-O+ {[%clk 0:01:40]} 19. Kc5 {[%clk 0:01:30]}  Qe5+ {[%clk 0:01:31]} 20. Kb4 {[%clk 0:01:28]}  Qd6+ {[%clk 0:01:27]} 21. Kb3 {[%clk 0:01:27]}  Qxd3+ {[%clk 0:01:26]} 22. Ka4 {[%clk 0:01:23]}  Qa6+ {[%clk 0:01:26]} 23. Kb3 {[%clk 0:01:11]}  Rd3+ {[%clk 0:01:19]} 24. Kc2 {[%clk 0:01:10]}  Re3+ {[%clk 0:01:08]} 25. Kd2 {[%clk 0:01:03]}  Qe2# {[%clk 0:01:09]} 0-1


[Site "https://www.chess.com"]

[Event "Titled Tuesday Blitz October 11 Late 2022"]
[White "Taichman, Ori"]
[Black "Zierk, Steven"]
[WhiteFideId "2804069"]
[BlackFideId "2034255"]
[WhiteElo "2234"]
[BlackElo "2494"]
[Result "1-0"]
[Round "02"]
[TimeControl "180+1"]
[Date "2022.10.11"]
[WhiteClock "0:00:22"]
[BlackClock "0:00:09"]

1. e4 {[%clk 0:02:58]}  c6 {[%clk 0:02:58]} 2. d4 {[%clk 0:02:52]}  d5 {[%clk 0:02:58]} 3. e5 {[%clk 0:02:52]}  Bf5 {[%clk 0:02:58]} 4. h4 {[%clk 0:02:52]}  h5 {[%clk 0:02:59]} 5. Bd3 {[%clk 0:02:52]}  Bxd3 {[%clk 0:02:59]} 6. Qxd3 {[%clk 0:02:53]}  Qa5+ {[%clk 0:02:59]} 7. Nd2 {[%clk 0:02:52]}  e6 {[%clk 0:02:57]} 8. Nf3 {[%clk 0:02:52]}  Ne7 {[%clk 0:02:50]} 9. O-O {[%clk 0:02:48]}  Nf5 {[%clk 0:02:49]} 10. a4 {[%clk 0:02:48]}  Be7 {[%clk 0:02:37]} 11. c4 {[%clk 0:02:43]}  Nxh4 {[%clk 0:02:33]} 12. Nxh4 {[%clk 0:02:44]}  Bxh4 {[%clk 0:02:33]} 13. b4 {[%clk 0:02:45]}  Qd8 {[%clk 0:02:26]} 14. b5 {[%clk 0:02:35]}  Be7 {[%clk 0:01:56]} 15. Ba3 {[%clk 0:02:10]}  h4 {[%clk 0:01:40]} 16. Rfb1 {[%clk 0:02:05]}  h3 {[%clk 0:01:35]} 17. gxh3 {[%clk 0:02:05]}  Bxa3 {[%clk 0:01:35]} 18. Rxa3 {[%clk 0:02:02]}  Qg5+ {[%clk 0:01:36]} 19. Kf1 {[%clk 0:01:57]}  Nd7 {[%clk 0:01:29]} 20. bxc6 {[%clk 0:01:54]}  bxc6 {[%clk 0:01:29]} 21. Rb7 {[%clk 0:01:52]}  Rd8 {[%clk 0:01:21]} 22. Rxa7 {[%clk 0:01:51]}  O-O {[%clk 0:01:20]} 23. c5 {[%clk 0:01:45]}  f6 {[%clk 0:01:17]} 24. Nf3 {[%clk 0:01:44]}  Qc1+ {[%clk 0:01:17]} 25. Kg2 {[%clk 0:01:44]}  fxe5 {[%clk 0:01:14]} 26. Nxe5 {[%clk 0:01:01]}  Nxe5 {[%clk 0:01:08]} 27. dxe5 {[%clk 0:01:01]}  Rf5 {[%clk 0:00:54]} 28. Qe3 {[%clk 0:00:45]}  Qb2 {[%clk 0:00:44]} 29. Qg3 {[%clk 0:00:44]}  g5 {[%clk 0:00:44]} 30. Rf3 {[%clk 0:00:42]}  Rdf8 {[%clk 0:00:42]} 31. Rxf5 {[%clk 0:00:39]}  Rxf5 {[%clk 0:00:42]} 32. h4 {[%clk 0:00:39]}  Qb8 {[%clk 0:00:33]} 33. Re7 {[%clk 0:00:32]}  Qf8 {[%clk 0:00:26]} 34. Rxe6 {[%clk 0:00:30]}  Qxc5 {[%clk 0:00:27]} 35. Rg6+ {[%clk 0:00:28]}  Kf7 {[%clk 0:00:24]} 36. Rxg5 {[%clk 0:00:28]}  Rxg5 {[%clk 0:00:23]} 37. Qxg5 {[%clk 0:00:23]}  Qd4 {[%clk 0:00:21]} 38. Qf6+ {[%clk 0:00:21]}  Kg8 {[%clk 0:00:20]} 39. Qg5+ {[%clk 0:00:20]}  Kh7 {[%clk 0:00:19]} 40. Qf5+ {[%clk 0:00:19]}  Kg7 {[%clk 0:00:18]} 41. h5 {[%clk 0:00:20]}  Qa7 {[%clk 0:00:10]} 42. e6 {[%clk 0:00:20]}  Qe7 {[%clk 0:00:08]} 43. Qf7+ {[%clk 0:00:19]}  Qxf7 {[%clk 0:00:07]} 44. exf7 {[%clk 0:00:20]}  c5 {[%clk 0:00:07]} 45. a5 {[%clk 0:00:20]}  c4 {[%clk 0:00:08]} 46. a6 {[%clk 0:00:21]}  c3 {[%clk 0:00:08]} 47. a7 {[%clk 0:00:21]}  c2 {[%clk 0:00:09]} 48. f8=Q+ {[%clk 0:00:22]} 1-0


[Site "https://www.chess.com"]

[Event "Titled Tuesday Blitz October 11 Late 2022"]
[White "Tan, Ralph"]
[Black "Ovezdurdyyeva, Jemal"]
[WhiteFideId "30966590"]
[BlackFideId "14001888"]
[WhiteElo "2059"]
[BlackElo "1961"]
[Result "0-1"]
[Round "02"]
[TimeControl "180+1"]
[Date "2022.10.12"]
[WhiteClock "0:00:13"]
[BlackClock "0:00:44"]

1. Nf3 {[%clk 0:03:00]}  Nf6 {[%clk 0:02:59]} 2. g3 {[%clk 0:02:59]}  e6 {[%clk 0:02:58]} 3. Bg2 {[%clk 0:02:59]}  d5 {[%clk 0:02:57]} 4. O-O {[%clk 0:03:00]}  Be7 {[%clk 0:02:57]} 5. d4 {[%clk 0:03:00]}  c6 {[%clk 0:02:55]} 6. c4 {[%clk 0:03:00]}  Ne4 {[%clk 0:02:55]} 7. Nc3 {[%clk 0:02:52]}  f5 {[%clk 0:02:55]} 8. Ne5 {[%clk 0:02:51]}  Nd7 {[%clk 0:02:52]} 9. Nxd7 {[%clk 0:02:48]}  Bxd7 {[%clk 0:02:51]} 10. f3 {[%clk 0:02:39]}  Nxc3 {[%clk 0:02:47]} 11. bxc3 {[%clk 0:02:39]}  dxc4 {[%clk 0:02:48]} 12. e4 {[%clk 0:02:39]}  O-O {[%clk 0:02:45]} 13. Qe2 {[%clk 0:02:30]}  b5 {[%clk 0:02:42]} 14. a4 {[%clk 0:02:25]}  a6 {[%clk 0:02:38]} 15. Rd1 {[%clk 0:02:07]}  c5 {[%clk 0:02:03]} 16. exf5 {[%clk 0:01:52]}  exf5 {[%clk 0:02:00]} 17. axb5 {[%clk 0:01:52]}  cxd4 {[%clk 0:01:57]} 18. cxd4 {[%clk 0:01:45]}  Bxb5 {[%clk 0:01:45]} 19. f4 {[%clk 0:01:24]}  Rc8 {[%clk 0:01:36]} 20. Bb7 {[%clk 0:01:16]}  Rc7 {[%clk 0:01:35]} 21. Bf3 {[%clk 0:00:51]}  Bf6 {[%clk 0:01:31]} 22. Ba3 {[%clk 0:00:34]}  Re8 {[%clk 0:01:28]} 23. Qf2 {[%clk 0:00:29]}  c3 {[%clk 0:01:20]} 24. Rac1 {[%clk 0:00:28]}  Rc4 {[%clk 0:01:09]} 25. d5 {[%clk 0:00:28]}  Qa5 {[%clk 0:01:01]} 26. Bc5 {[%clk 0:00:21]}  Ba4 {[%clk 0:01:00]} 27. Re1 {[%clk 0:00:18]}  Qxc5 {[%clk 0:00:56]} 28. Rxe8+ {[%clk 0:00:14]}  Bxe8 {[%clk 0:00:55]} 29. Qxc5 {[%clk 0:00:14]}  Rxc5 {[%clk 0:00:54]} 30. d6 {[%clk 0:00:14]}  c2 {[%clk 0:00:51]} 31. Kg2 {[%clk 0:00:13]}  Bb2 {[%clk 0:00:50]} 32. Re1 {[%clk 0:00:13]}  Bd7 {[%clk 0:00:47]} 33. Re7 {[%clk 0:00:14]}  c1=Q {[%clk 0:00:46]} 34. Rxd7 {[%clk 0:00:14]}  Rc2+ {[%clk 0:00:45]} 35. Kh3 {[%clk 0:00:14]}  Qf1+ {[%clk 0:00:45]} 36. Kh4 {[%clk 0:00:14]}  Bf6+ {[%clk 0:00:43]} 37. Kh5 {[%clk 0:00:13]}  Rxh2# {[%clk 0:00:44]} 0-1


[Site "https://www.chess.com"]

[Event "Titled Tuesday Blitz October 11 Late 2022"]
[White "Tanenbaum, Zachary"]
[Black "Jorquera, Marcelo"]
[WhiteFideId "2060850"]
[BlackFideId "3401197"]
[WhiteElo "2175"]
[BlackElo "2136"]
[Result "1-0"]
[Round "02"]
[TimeControl "180+1"]
[Date "2022.10.12"]
[WhiteClock "0:00:20"]
[BlackClock "0:00:02"]

1. e4 {[%clk 0:03:00]}  d5 {[%clk 0:02:59]} 2. exd5 {[%clk 0:03:01]}  Qxd5 {[%clk 0:03:00]} 3. Nc3 {[%clk 0:03:02]}  Qa5 {[%clk 0:03:00]} 4. d4 {[%clk 0:03:03]}  Nf6 {[%clk 0:03:00]} 5. Nf3 {[%clk 0:03:03]}  Bf5 {[%clk 0:03:00]} 6. Bc4 {[%clk 0:03:03]}  e6 {[%clk 0:02:56]} 7. Bd2 {[%clk 0:02:56]}  Bb4 {[%clk 0:02:52]} 8. Qe2 {[%clk 0:02:55]}  O-O {[%clk 0:02:04]} 9. O-O-O {[%clk 0:02:54]}  Nc6 {[%clk 0:02:02]} 10. Kb1 {[%clk 0:02:22]}  Rfd8 {[%clk 0:01:49]} 11. a3 {[%clk 0:02:00]}  Bxc3 {[%clk 0:01:46]} 12. Bxc3 {[%clk 0:02:00]}  Qb6 {[%clk 0:01:47]} 13. Bd3 {[%clk 0:01:40]}  Nd5 {[%clk 0:01:32]} 14. Bd2 {[%clk 0:01:35]}  Bxd3 {[%clk 0:00:30]} 15. Qxd3 {[%clk 0:01:34]}  Rd7 {[%clk 0:00:22]} 16. c4 {[%clk 0:01:17]}  Qa6 {[%clk 0:00:21]} 17. Bc3 {[%clk 0:00:42]}  Nb6 {[%clk 0:00:19]} 18. Ng5 {[%clk 0:00:29]}  g6 {[%clk 0:00:12]} 19. d5 {[%clk 0:00:22]}  exd5 {[%clk 0:00:04]} 20. Qh3 {[%clk 0:00:22]}  h5 {[%clk 0:00:02]} 21. c5 {[%clk 0:00:20]} 1-0


[Site "https://www.chess.com"]

[Event "Titled Tuesday Blitz October 11 Late 2022"]
[White "Tayar, Jonathan"]
[Black "Bluebaum, Matthias"]
[WhiteFideId "2606534"]
[BlackFideId "24651516"]
[WhiteElo "2406"]
[BlackElo "2633"]
[Result "0-1"]
[Round "02"]
[TimeControl "180+1"]
[Date "2022.10.11"]
[WhiteClock "0:00:13"]
[BlackClock "0:00:58"]

1. e4 {[%clk 0:03:00]}  e6 {[%clk 0:02:59]} 2. d4 {[%clk 0:03:00]}  d5 {[%clk 0:03:00]} 3. Nc3 {[%clk 0:02:59]}  Nf6 {[%clk 0:03:01]} 4. exd5 {[%clk 0:02:58]}  exd5 {[%clk 0:03:01]} 5. Bd3 {[%clk 0:02:58]}  c5 {[%clk 0:03:02]} 6. dxc5 {[%clk 0:02:54]}  Bxc5 {[%clk 0:03:02]} 7. Nf3 {[%clk 0:02:48]}  O-O {[%clk 0:03:02]} 8. O-O {[%clk 0:02:48]}  h6 {[%clk 0:03:03]} 9. h3 {[%clk 0:02:41]}  Nc6 {[%clk 0:03:00]} 10. Bf4 {[%clk 0:02:41]}  Re8 {[%clk 0:02:58]} 11. a3 {[%clk 0:02:37]}  a6 {[%clk 0:02:58]} 12. Qd2 {[%clk 0:02:32]}  Ne4 {[%clk 0:02:49]} 13. Bxe4 {[%clk 0:02:20]}  dxe4 {[%clk 0:02:50]} 14. Qxd8 {[%clk 0:02:19]}  Nxd8 {[%clk 0:02:51]} 15. Nd2 {[%clk 0:02:18]}  f5 {[%clk 0:02:50]} 16. Nc4 {[%clk 0:02:04]}  Nf7 {[%clk 0:02:49]} 17. Rad1 {[%clk 0:02:02]}  Be6 {[%clk 0:02:45]} 18. Nd6 {[%clk 0:02:02]}  Nxd6 {[%clk 0:02:43]} 19. Bxd6 {[%clk 0:02:02]}  Ba7 {[%clk 0:02:44]} 20. Nd5 {[%clk 0:01:56]}  Bxd5 {[%clk 0:01:38]} 21. Rxd5 {[%clk 0:01:57]}  Rad8 {[%clk 0:01:38]} 22. c4 {[%clk 0:01:44]}  g6 {[%clk 0:01:36]} 23. b4 {[%clk 0:01:16]}  Bb8 {[%clk 0:01:33]} 24. Rfd1 {[%clk 0:01:04]}  Kf7 {[%clk 0:01:30]} 25. Bxb8 {[%clk 0:00:58]}  Rxb8 {[%clk 0:01:31]} 26. c5 {[%clk 0:00:47]}  Re7 {[%clk 0:01:28]} 27. Kf1 {[%clk 0:00:46]}  b6 {[%clk 0:01:26]} 28. c6 {[%clk 0:00:44]}  Rc8 {[%clk 0:01:25]} 29. Rc1 {[%clk 0:00:33]}  Ke6 {[%clk 0:01:23]} 30. Rd2 {[%clk 0:00:32]}  b5 {[%clk 0:01:18]} 31. Ke2 {[%clk 0:00:29]}  Ke5 {[%clk 0:01:13]} 32. Rc5+ {[%clk 0:00:27]}  Ke6 {[%clk 0:01:14]} 33. g3 {[%clk 0:00:26]}  Rec7 {[%clk 0:01:14]} 34. Rdc2 {[%clk 0:00:25]}  Rd8 {[%clk 0:01:13]} 35. R2c3 {[%clk 0:00:22]}  Rd4 {[%clk 0:01:13]} 36. Ke3 {[%clk 0:00:18]}  Rd5 {[%clk 0:01:08]} 37. f3 {[%clk 0:00:14]}  exf3 {[%clk 0:01:06]} 38. Kxf3 {[%clk 0:00:13]}  Rd4 {[%clk 0:01:00]} 39. Re3+ {[%clk 0:00:12]}  Kd6 {[%clk 0:01:00]} 40. Rce5 {[%clk 0:00:12]}  Rxc6 {[%clk 0:00:58]} 41. Re6+ {[%clk 0:00:13]}  Kc7 {[%clk 0:00:58]} 42. Re7+ {[%clk 0:00:13]}  Rd7 {[%clk 0:00:58]} 43. Rh7 {[%clk 0:00:13]}  Rxh7 {[%clk 0:00:58]} 0-1


[Site "https://www.chess.com"]

[Event "Titled Tuesday Blitz October 11 Late 2022"]
[White "Trent, Lawrence"]
[Black "Prydun, Andriy"]
[WhiteFideId "408638"]
[BlackFideId "14145898"]
[WhiteElo "2474"]
[BlackElo "2163"]
[Result "1-0"]
[Round "02"]
[TimeControl "180+1"]
[Date "2022.10.12"]
[WhiteClock "0:00:53"]
[BlackClock "0:00:03"]

1. d4 {[%clk 0:02:58]}  Nf6 {[%clk 0:02:14]} 2. Nc3 {[%clk 0:02:59]}  d5 {[%clk 0:02:13]} 3. Bf4 {[%clk 0:02:59]}  c5 {[%clk 0:02:13]} 4. e4 {[%clk 0:02:59]}  Nxe4 {[%clk 0:01:57]} 5. Nxe4 {[%clk 0:02:58]}  dxe4 {[%clk 0:01:58]} 6. dxc5 {[%clk 0:02:58]}  Qa5+ {[%clk 0:01:58]} 7. Qd2 {[%clk 0:02:59]}  Qxc5 {[%clk 0:01:40]} 8. O-O-O {[%clk 0:02:34]}  Nc6 {[%clk 0:01:38]} 9. Ne2 {[%clk 0:02:33]}  Be6 {[%clk 0:01:04]} 10. Nc3 {[%clk 0:02:33]}  g5 {[%clk 0:01:03]} 11. Nb5 {[%clk 0:02:01]}  f5 {[%clk 0:00:33]} 12. Nc7+ {[%clk 0:01:46]}  Kf7 {[%clk 0:00:32]} 13. Be3 {[%clk 0:01:46]}  Qe5 {[%clk 0:00:30]} 14. Nxa8 {[%clk 0:01:41]}  Bg7 {[%clk 0:00:30]} 15. c3 {[%clk 0:01:41]}  Rd8 {[%clk 0:00:22]} 16. Qc2 {[%clk 0:01:39]}  Rxa8 {[%clk 0:00:18]} 17. Bxg5 {[%clk 0:01:28]}  f4 {[%clk 0:00:17]} 18. Bh4 {[%clk 0:01:28]}  Rc8 {[%clk 0:00:14]} 19. Re1 {[%clk 0:01:25]}  Bd5 {[%clk 0:00:12]} 20. f3 {[%clk 0:01:20]}  Nb4 {[%clk 0:00:11]} 21. Rxe4 {[%clk 0:01:16]}  Nxa2+ {[%clk 0:00:08]} 22. Kb1 {[%clk 0:01:15]}  Bxe4 {[%clk 0:00:07]} 23. Qxe4 {[%clk 0:01:15]}  Nxc3+ {[%clk 0:00:08]} 24. bxc3 {[%clk 0:01:14]}  Qxc3 {[%clk 0:00:08]} 25. Bc4+ {[%clk 0:01:01]}  Rxc4 {[%clk 0:00:08]} 26. Qxe7+ {[%clk 0:01:01]}  Kg6 {[%clk 0:00:06]} 27. Qe8+ {[%clk 0:00:53]}  Kh6 {[%clk 0:00:05]} 28. Qe6+ {[%clk 0:00:53]}  Kh5 {[%clk 0:00:03]} 29. Qg4+ {[%clk 0:00:53]}  Kh6 {[%clk 0:00:03]} 30. Qg5# {[%clk 0:00:53]} 1-0


[Site "https://www.chess.com"]